[Event "GrandPrix_29.05"]
[Site "Chess.com"]
[Date "2020.05.29"]
[Round "5"]
[White "jncool68"]
[Black "GM_dmitrij"]
[Result "1/2-1/2"]
[WhiteElo "2267"]
[BlackElo "2482"]
[TimeControl "600+2"]
[EndTime "11:23:44 PDT"]
[Termination "Game drawn by repetition"]

1. e4 {[%clk 0:10:01.9]} 1... e5 {[%clk 0:10:01.2]} 2. Nf3 {[%clk 0:10:02.3]}
2... Nc6 {[%clk 0:10:02.7]} 3. Bb5 {[%clk 0:10:02.7]} 3... a6 {[%clk 0:10:04.1]}
4. Ba4 {[%clk 0:10:03.4]} 4... Nf6 {[%clk 0:10:05.5]} 5. O-O {[%clk 0:10:04.2]}
5... Bc5 {[%clk 0:10:06.9]} 6. c3 {[%clk 0:09:52.4]} 6... b5 {[%clk 0:10:07.4]}
7. Bb3 {[%clk 0:09:48]} 7... d6 {[%clk 0:10:08]} 8. a4 {[%clk 0:09:44]} 8... b4
{[%clk 0:10:08.2]} 9. d4 {[%clk 0:09:39.7]} 9... Ba7 {[%clk 0:10:08.3]} 10. dxe5
{[%clk 0:09:31.4]} 10... Nxe5 {[%clk 0:10:07.5]} 11. Nxe5 {[%clk 0:09:31.3]}
11... dxe5 {[%clk 0:10:09.4]} 12. Qxd8+ {[%clk 0:09:09.1]} 12... Kxd8 {[%clk
0:10:11.3]} 13. cxb4 {[%clk 0:09:10.3]} 13... Rb8 {[%clk 0:10:11.1]} 14. Nc3
{[%clk 0:09:05.6]} 14... Rxb4 {[%clk 0:10:01.1]} 15. Bxf7 {[%clk 0:09:06]} 15...
Rf8 {[%clk 0:09:52.4]} 16. Bd5 {[%clk 0:08:51.9]} 16... Nxd5 {[%clk 0:08:32.8]}
17. exd5 {[%clk 0:08:51.2]} 17... Bf5 {[%clk 0:08:07.2]} 18. Be3 {[%clk
0:08:49]} 18... Bd4 {[%clk 0:08:07.6]} 19. Rad1 {[%clk 0:08:40.8]} 19... Bc2
{[%clk 0:06:24.7]} 20. Rd2 {[%clk 0:08:37.7]} 20... Bxa4 {[%clk 0:06:09.4]} 21.
h3 {[%clk 0:07:58.8]} 21... Bb5 {[%clk 0:05:40]} 22. Rfd1 {[%clk 0:07:55.7]}
22... Bxc3 {[%clk 0:04:56.6]} 23. bxc3 {[%clk 0:07:55.7]} 23... Rc4 {[%clk
0:04:57.9]} 24. d6 {[%clk 0:07:56.8]} 24... cxd6 {[%clk 0:04:26.4]} 25. Rxd6+
{[%clk 0:07:56.4]} 25... Kc7 {[%clk 0:04:28]} 26. Bb6+ {[%clk 0:07:56.4]} 26...
Kb7 {[%clk 0:04:27]} 27. Ba5 {[%clk 0:07:56.9]} 27... Rcf4 {[%clk 0:03:56.5]}
28. R1d2 {[%clk 0:07:47]} 28... R8f6 {[%clk 0:03:48.8]} 29. Rd8 {[%clk
0:07:20.2]} 29... Rf8 {[%clk 0:03:46.5]} 30. R8d6 {[%clk 0:07:18.8]} 30... R4f6
{[%clk 0:03:31.9]} 31. R6d5 {[%clk 0:07:17.3]} 31... e4 {[%clk 0:03:29.6]} 32.
Re5 {[%clk 0:07:17.3]} 32... R8f7 {[%clk 0:02:53.1]} 33. Rxe4 {[%clk 0:07:15]}
33... Rf4 {[%clk 0:02:54]} 34. Re5 {[%clk 0:07:06.1]} 34... R4f5 {[%clk
0:02:54]} 35. Rxf5 {[%clk 0:07:00.1]} 35... Rxf5 {[%clk 0:02:55.9]} 36. Bb4
{[%clk 0:06:55.9]} 36... Bc6 {[%clk 0:02:48.9]} 37. Ra2 {[%clk 0:06:54.9]} 37...
Kb6 {[%clk 0:02:49.4]} 38. Rb2 {[%clk 0:06:36]} 38... Kc7 {[%clk 0:02:30.7]} 39.
Ra2 {[%clk 0:06:29.7]} 39... Kb6 {[%clk 0:02:31.6]} 40. Rb2 {[%clk 0:06:30.4]}
40... Kc7 {[%clk 0:02:31.5]} 41. Ra2 {[%clk 0:06:19.3]} 41... Kb6 {[%clk
0:02:32.4]} 1/2-1/2

[Event "GrandPrix_29.05"]
[Site "Chess.com"]
[Date "2020.05.29"]
[Round "5"]
[White "metra93"]
[Black "Karateloru"]
[Result "0-1"]
[WhiteElo "2299"]
[BlackElo "2270"]
[TimeControl "600+2"]
[EndTime "11:24:12 PDT"]
[Termination "Karateloru won by resignation"]

1. e4 {[%clk 0:09:58.4]} 1... c5 {[%clk 0:09:57]} 2. Nf3 {[%clk 0:09:55.9]} 2...
e6 {[%clk 0:09:56.5]} 3. d4 {[%clk 0:09:53.9]} 3... cxd4 {[%clk 0:09:56.5]} 4.
Nxd4 {[%clk 0:09:55.8]} 4... Bc5 {[%clk 0:09:56.7]} 5. Nb3 {[%clk 0:09:54.3]}
5... Bb6 {[%clk 0:09:57.6]} 6. Qg4 {[%clk 0:09:54.9]} 6... Nf6 {[%clk
0:09:57.5]} 7. Qh4 {[%clk 0:09:39.5]} 7... d5 {[%clk 0:09:27.3]} 8. exd5 {[%clk
0:08:41.3]} 8... exd5 {[%clk 0:09:03.3]} 9. Bb5+ {[%clk 0:08:08.2]} 9... Bd7
{[%clk 0:08:58.7]} 10. Bxd7+ {[%clk 0:07:56.5]} 10... Qxd7 {[%clk 0:08:59]} 11.
O-O {[%clk 0:07:55.7]} 11... O-O {[%clk 0:08:59.5]} 12. Nc3 {[%clk 0:07:48.9]}
12... Nc6 {[%clk 0:08:40.1]} 13. Bg5 {[%clk 0:07:43.1]} 13... Qf5 {[%clk
0:08:27.7]} 14. Bxf6 {[%clk 0:07:34.5]} 14... gxf6 {[%clk 0:08:29.6]} 15. Rad1
{[%clk 0:07:29.6]} 15... Rad8 {[%clk 0:08:21]} 16. Rd3 {[%clk 0:06:18]} 16...
Kh8 {[%clk 0:08:17.4]} 17. Rf3 {[%clk 0:06:13.6]} 17... Qg5 {[%clk 0:08:16.7]}
18. Qh3 {[%clk 0:05:26.9]} 18... Ne5 {[%clk 0:07:28.7]} 19. Rg3 {[%clk
0:04:25.5]} 19... Qf4 {[%clk 0:07:27.6]} 20. Qh5 {[%clk 0:04:15.9]} 20... Rg8
{[%clk 0:07:03.6]} 21. Rxg8+ {[%clk 0:03:22.7]} 21... Rxg8 {[%clk 0:07:02.3]}
22. Nxd5 {[%clk 0:02:55.7]} 22... Qe4 {[%clk 0:07:01]} 23. Qh3 {[%clk 0:00:19]}
23... Qxd5 {[%clk 0:06:58.9]} 24. Kh1 {[%clk 0:00:20.1]} 24... Ng4 {[%clk
0:06:56]} 25. Qh4 {[%clk 0:00:19.6]} 0-1

[Event "GrandPrix_29.05"]
[Site "Chess.com"]
[Date "2020.05.29"]
[Round "5"]
[White "gummigisla"]
[Black "GM_RobertoMogranzini"]
[Result "0-1"]
[WhiteElo "2039"]
[BlackElo "1972"]
[TimeControl "600+2"]
[EndTime "11:24:16 PDT"]
[Termination "GM_RobertoMogranzini won by resignation"]

1. e4 {[%clk 0:10:00.9]} 1... c5 {[%clk 0:09:50.9]} 2. Be2 {[%clk 0:09:59.9]}
2... Nf6 {[%clk 0:09:40.3]} 3. d3 {[%clk 0:09:58.1]} 3... d6 {[%clk 0:09:37.5]}
4. f4 {[%clk 0:09:57.9]} 4... g6 {[%clk 0:09:38.3]} 5. Nf3 {[%clk 0:09:55.3]}
5... Bg7 {[%clk 0:09:39.5]} 6. O-O {[%clk 0:09:56.5]} 6... Nc6 {[%clk
0:09:40.6]} 7. c3 {[%clk 0:09:57]} 7... O-O {[%clk 0:09:40.6]} 8. Qe1 {[%clk
0:09:57.7]} 8... e6 {[%clk 0:09:42.2]} 9. Nbd2 {[%clk 0:09:53]} 9... b5 {[%clk
0:09:40.9]} 10. Qh4 {[%clk 0:09:48.3]} 10... Nd7 {[%clk 0:09:39.9]} 11. Qh3
{[%clk 0:09:10]} 11... Rb8 {[%clk 0:09:24.2]} 12. g4 {[%clk 0:08:43.3]} 12... f5
{[%clk 0:09:17.3]} 13. exf5 {[%clk 0:07:59.8]} 13... exf5 {[%clk 0:09:15.2]} 14.
gxf5 {[%clk 0:07:59.3]} 14... Rxf5 {[%clk 0:09:10.8]} 15. Ng5 {[%clk 0:07:59.1]}
15... Nf6 {[%clk 0:09:09.8]} 16. Qg2 {[%clk 0:07:54.9]} 16... d5 {[%clk
0:08:49.8]} 17. Ndf3 {[%clk 0:07:52.8]} 17... h6 {[%clk 0:08:36.9]} 18. Nh3
{[%clk 0:07:50.8]} 18... Rh5 {[%clk 0:08:05.9]} 19. Nf2 {[%clk 0:07:39.4]} 19...
Kh7 {[%clk 0:08:02.4]} 20. Ne5 {[%clk 0:07:36.9]} 20... Nxe5 {[%clk 0:06:47.3]}
21. Bxh5 {[%clk 0:07:35]} 21... Nxh5 {[%clk 0:06:46.7]} 22. fxe5 {[%clk
0:07:35]} 22... Qh4 {[%clk 0:06:24.8]} 23. d4 {[%clk 0:07:24.9]} 23... Be6
{[%clk 0:06:14.6]} 24. Be3 {[%clk 0:07:20.5]} 24... c4 {[%clk 0:06:07.6]} 25. a3
{[%clk 0:06:58.2]} 25... Rf8 {[%clk 0:05:51.9]} 26. a4 {[%clk 0:06:33.7]} 26...
b4 {[%clk 0:05:43]} 27. cxb4 {[%clk 0:06:33.2]} 27... Nf4 {[%clk 0:05:41.2]} 28.
Bxf4 {[%clk 0:06:32]} 28... Rxf4 {[%clk 0:05:43.1]} 29. Qg3 {[%clk 0:06:19.7]}
29... Rxd4 {[%clk 0:05:39.4]} 30. Qxh4 {[%clk 0:06:08]} 30... Rxh4 {[%clk
0:05:41.3]} 31. Rfe1 {[%clk 0:06:08.5]} 31... Bf8 {[%clk 0:05:23.3]} 32. b5
{[%clk 0:06:00.9]} 32... Bc5 {[%clk 0:05:23.5]} 33. Kg2 {[%clk 0:06:02.2]} 33...
Rf4 {[%clk 0:05:13.7]} 34. Nh1 {[%clk 0:05:58]} 34... d4 {[%clk 0:05:05.4]} 35.
Ng3 {[%clk 0:05:55.7]} 35... d3 {[%clk 0:05:05.9]} 36. Rf1 {[%clk 0:05:53.7]}
36... Bd5+ {[%clk 0:04:55.4]} 37. Kh3 {[%clk 0:05:53]} 37... g5 {[%clk
0:04:48.2]} 38. Rxf4 {[%clk 0:05:51.8]} 38... gxf4 {[%clk 0:04:49.2]} 39. Nh5
{[%clk 0:05:52.7]} 39... Bf3 {[%clk 0:04:27.3]} 40. Nf6+ {[%clk 0:05:07.5]}
40... Kg6 {[%clk 0:04:11.3]} 41. Nd7 {[%clk 0:05:08.6]} 41... Bd4 {[%clk
0:04:08.5]} 42. e6 {[%clk 0:05:09.2]} 42... d2 {[%clk 0:04:02.9]} 43. a5 {[%clk
0:05:00.7]} 43... d1=Q {[%clk 0:03:50.8]} 44. Rxd1 {[%clk 0:04:59.9]} 44... Bxd1
{[%clk 0:03:52.7]} 45. b6 {[%clk 0:04:50.9]} 45... axb6 {[%clk 0:03:53.3]} 46.
axb6 {[%clk 0:04:52.1]} 46... Bf3 {[%clk 0:03:50.7]} 0-1

[Event "GrandPrix_29.05"]
[Site "Chess.com"]
[Date "2020.05.29"]
[Round "5"]
[White "VitaliyBernadskiy"]
[Black "BairaKovanova"]
[Result "1-0"]
[WhiteElo "2400"]
[BlackElo "2139"]
[TimeControl "600+2"]
[EndTime "11:24:32 PDT"]
[Termination "VitaliyBernadskiy won by resignation"]

1. e4 {[%clk 0:10:01.9]} 1... e5 {[%clk 0:09:59.4]} 2. Nf3 {[%clk 0:10:02.2]}
2... Nc6 {[%clk 0:09:57.7]} 3. Bb5 {[%clk 0:10:02.6]} 3... a6 {[%clk 0:09:57.5]}
4. Ba4 {[%clk 0:10:03.7]} 4... Nf6 {[%clk 0:09:54.7]} 5. O-O {[%clk 0:10:03.7]}
5... Be7 {[%clk 0:09:55.2]} 6. Re1 {[%clk 0:10:04.2]} 6... b5 {[%clk 0:09:55.5]}
7. Bb3 {[%clk 0:10:05.5]} 7... d6 {[%clk 0:09:57]} 8. c3 {[%clk 0:10:06.8]} 8...
O-O {[%clk 0:09:58.3]} 9. h3 {[%clk 0:10:08.2]} 9... Na5 {[%clk 0:09:54.7]} 10.
Bc2 {[%clk 0:10:09.2]} 10... c5 {[%clk 0:09:54.8]} 11. d4 {[%clk 0:10:10.7]}
11... Nd7 {[%clk 0:09:55.9]} 12. Nbd2 {[%clk 0:09:50.7]} 12... exd4 {[%clk
0:09:55.3]} 13. cxd4 {[%clk 0:09:52.6]} 13... Nc6 {[%clk 0:09:56.4]} 14. d5
{[%clk 0:09:52.5]} 14... Nce5 {[%clk 0:09:57.3]} 15. Nh2 {[%clk 0:09:47.5]}
15... Ng6 {[%clk 0:09:48]} 16. a4 {[%clk 0:09:31.3]} 16... Bb7 {[%clk
0:09:38.9]} 17. Ndf1 {[%clk 0:09:29.1]} 17... Bf6 {[%clk 0:09:12.4]} 18. Ng4
{[%clk 0:09:22.7]} 18... Bd4 {[%clk 0:09:08.6]} 19. Ng3 {[%clk 0:09:17.6]} 19...
Nde5 {[%clk 0:07:43]} 20. Nf5 {[%clk 0:09:17.1]} 20... Nxg4 {[%clk 0:07:37.5]}
21. hxg4 {[%clk 0:09:19]} 21... Be5 {[%clk 0:07:27.5]} 22. g3 {[%clk 0:09:18.7]}
22... Ne7 {[%clk 0:06:28.5]} 23. Kg2 {[%clk 0:09:03.4]} 23... Nxf5 {[%clk
0:06:06.7]} 24. gxf5 {[%clk 0:09:05.3]} 24... Qf6 {[%clk 0:06:07.7]} 25. Rb1
{[%clk 0:08:57.3]} 25... Rfe8 {[%clk 0:05:34.1]} 26. Rh1 {[%clk 0:08:54.3]}
26... h6 {[%clk 0:05:34.4]} 27. g4 {[%clk 0:08:42.1]} 27... Bd4 {[%clk 0:05:16]}
28. g5 {[%clk 0:08:33.7]} 28... hxg5 {[%clk 0:04:01.5]} 29. Qg4 {[%clk 0:08:15]}
29... Qd8 {[%clk 0:03:38.7]} 30. Bxg5 {[%clk 0:07:50.9]} 30... Bf6 {[%clk
0:03:05.1]} 31. f4 {[%clk 0:07:33.8]} 31... Kf8 {[%clk 0:02:27.2]} 32. Rh7
{[%clk 0:07:33.4]} 32... Bxg5 {[%clk 0:01:53.7]} 33. fxg5 {[%clk 0:07:28]} 33...
Bc8 {[%clk 0:01:19.4]} 34. Qh5 {[%clk 0:07:10.8]} 34... Qa5 {[%clk 0:00:38.2]}
35. b4 {[%clk 0:07:11.3]} 35... cxb4 {[%clk 0:00:38]} 36. f6 {[%clk 0:07:11.1]}
1-0

[Event "GrandPrix_29.05"]
[Site "Chess.com"]
[Date "2020.05.29"]
[Round "5"]
[White "Borsuk_Konstantin"]
[Black "KacperKacprzak"]
[Result "1-0"]
[WhiteElo "1838"]
[BlackElo "2036"]
[TimeControl "600+2"]
[EndTime "11:24:52 PDT"]
[Termination "Borsuk_Konstantin won by resignation"]

1. d4 {[%clk 0:10:01.9]} 1... Nf6 {[%clk 0:09:59.9]} 2. c4 {[%clk 0:10:02.6]}
2... d6 {[%clk 0:10:00.4]} 3. Nc3 {[%clk 0:10:03.5]} 3... Nbd7 {[%clk
0:10:00.9]} 4. e4 {[%clk 0:10:03.2]} 4... g6 {[%clk 0:10:00.9]} 5. Be3 {[%clk
0:10:02.9]} 5... Bg7 {[%clk 0:10:01.3]} 6. f3 {[%clk 0:10:02.2]} 6... e5 {[%clk
0:10:01.3]} 7. d5 {[%clk 0:10:02.5]} 7... a5 {[%clk 0:09:59.5]} 8. Nge2 {[%clk
0:09:55.8]} 8... O-O {[%clk 0:09:54]} 9. g4 {[%clk 0:09:13.5]} 9... h5 {[%clk
0:09:41.8]} 10. h3 {[%clk 0:09:03.1]} 10... Qe7 {[%clk 0:09:32.6]} 11. Bg5
{[%clk 0:08:44.4]} 11... c6 {[%clk 0:08:48.4]} 12. gxh5 {[%clk 0:08:31.5]} 12...
gxh5 {[%clk 0:08:45.5]} 13. Ng3 {[%clk 0:08:24]} 13... Nc5 {[%clk 0:08:34.1]}
14. Nxh5 {[%clk 0:08:20]} 14... Kh7 {[%clk 0:08:01.7]} 15. Qd2 {[%clk
0:07:31.6]} 15... Bh8 {[%clk 0:07:53.7]} 16. O-O-O {[%clk 0:07:21.5]} 16... Rg8
{[%clk 0:07:41]} 17. h4 {[%clk 0:07:14.8]} 17... Rg6 {[%clk 0:07:24.7]} 18. Ng3
{[%clk 0:07:00.3]} 18... Qf8 {[%clk 0:07:15.2]} 19. Kb1 {[%clk 0:06:51.6]} 19...
cxd5 {[%clk 0:07:09.3]} 20. cxd5 {[%clk 0:06:34.8]} 20... Ne8 {[%clk 0:06:52.4]}
21. Nf5 {[%clk 0:06:06.6]} 21... Bf6 {[%clk 0:06:30.4]} 22. Bh3 {[%clk
0:06:01.4]} 22... Bd7 {[%clk 0:06:23.9]} 23. Ne3 {[%clk 0:05:51.1]} 23... Qe7
{[%clk 0:05:55.2]} 24. Bf5 {[%clk 0:05:42.4]} 24... Bxf5 {[%clk 0:05:51.6]} 25.
Nxf5 {[%clk 0:05:41.7]} 25... Qd7 {[%clk 0:05:52.7]} 26. Bxf6 {[%clk 0:05:25.6]}
26... Rxf6 {[%clk 0:05:42.4]} 27. Rhg1 {[%clk 0:05:12.6]} 27... Rxf5 {[%clk
0:05:38.2]} 28. Qg2 {[%clk 0:04:47.2]} 28... Kh6 {[%clk 0:04:23.5]} 29. Qg8
{[%clk 0:04:19.1]} 29... Nf6 {[%clk 0:03:26.3]} 30. Qg7+ {[%clk 0:03:35.9]}
30... Kh5 {[%clk 0:03:24.5]} 31. Rg5+ {[%clk 0:03:35.7]} 1-0

[Event "GrandPrix_29.05"]
[Site "Chess.com"]
[Date "2020.05.29"]
[Round "5"]
[White "RovenVogel"]
[Black "pheonixking2000"]
[Result "0-1"]
[WhiteElo "2369"]
[BlackElo "2633"]
[TimeControl "600+2"]
[EndTime "11:24:56 PDT"]
[Termination "pheonixking2000 won by resignation"]

1. d4 {[%clk 0:10:01.7]} 1... d5 {[%clk 0:09:59]} 2. c4 {[%clk 0:10:01.2]} 2...
e6 {[%clk 0:09:59.9]} 3. Nc3 {[%clk 0:09:59.4]} 3... Nf6 {[%clk 0:10:00.9]} 4.
cxd5 {[%clk 0:09:59.1]} 4... exd5 {[%clk 0:10:00.7]} 5. Bg5 {[%clk 0:09:59.4]}
5... c6 {[%clk 0:10:01]} 6. Qc2 {[%clk 0:09:51.3]} 6... h6 {[%clk 0:09:43.9]} 7.
Bh4 {[%clk 0:09:51.4]} 7... Be6 {[%clk 0:09:44.7]} 8. e3 {[%clk 0:09:43.3]} 8...
Nbd7 {[%clk 0:09:43.4]} 9. Bd3 {[%clk 0:09:41.4]} 9... g5 {[%clk 0:09:44.8]} 10.
Bg3 {[%clk 0:09:39.7]} 10... Nh5 {[%clk 0:09:46.4]} 11. Nge2 {[%clk 0:09:28.2]}
11... Nxg3 {[%clk 0:09:43.6]} 12. Nxg3 {[%clk 0:09:15]} 12... h5 {[%clk
0:09:44.9]} 13. Nf5 {[%clk 0:08:39.2]} 13... h4 {[%clk 0:09:37.5]} 14. O-O-O
{[%clk 0:08:33]} 14... Qf6 {[%clk 0:09:21.3]} 15. g4 {[%clk 0:07:46.3]} 15...
O-O-O {[%clk 0:08:51.7]} 16. h3 {[%clk 0:06:52.7]} 16... Kb8 {[%clk 0:08:50.6]}
17. Qa4 {[%clk 0:04:23.8]} 17... c5 {[%clk 0:08:25.6]} 18. dxc5 {[%clk
0:04:02.9]} 18... Bxc5 {[%clk 0:08:24.9]} 19. Kb1 {[%clk 0:03:50.8]} 19... Ne5
{[%clk 0:07:44.1]} 20. Bc2 {[%clk 0:03:47.8]} 20... Nc6 {[%clk 0:07:45.5]} 21.
Qb5 {[%clk 0:03:36.7]} 21... Bb4 {[%clk 0:06:39]} 22. Nxd5 {[%clk 0:02:27.8]}
22... Qe5 {[%clk 0:06:32.3]} 23. e4 {[%clk 0:02:24.9]} 23... a6 {[%clk
0:06:19.8]} 24. Qc4 {[%clk 0:02:01.8]} 24... Rd7 {[%clk 0:06:16.9]} 25. a3
{[%clk 0:01:45.9]} 25... Ba5 {[%clk 0:06:13.3]} 26. Ba4 {[%clk 0:01:42.2]} 26...
Rc8 {[%clk 0:06:10.7]} 27. Bxc6 {[%clk 0:01:39.7]} 27... Rxc6 {[%clk 0:06:07.4]}
28. Qb3 {[%clk 0:01:34.3]} 28... Qxe4+ {[%clk 0:06:05.9]} 29. Ka1 {[%clk
0:00:56.8]} 29... Rxd5 {[%clk 0:05:56.2]} 0-1

[Event "GrandPrix_29.05"]
[Site "Chess.com"]
[Date "2020.05.29"]
[Round "5"]
[White "MilanovicDan"]
[Black "viktorko131"]
[Result "1-0"]
[WhiteElo "2412"]
[BlackElo "2182"]
[TimeControl "600+2"]
[EndTime "11:24:57 PDT"]
[Termination "MilanovicDan won by resignation"]

1. d4 {[%clk 0:10:01.9]} 1... Nf6 {[%clk 0:09:59.4]} 2. c4 {[%clk 0:10:01.1]}
2... e6 {[%clk 0:09:59.3]} 3. Nc3 {[%clk 0:10:00.1]} 3... Bb4 {[%clk 0:09:59.3]}
4. e3 {[%clk 0:09:55.1]} 4... d5 {[%clk 0:09:55.1]} 5. cxd5 {[%clk 0:09:44.5]}
5... exd5 {[%clk 0:09:54.9]} 6. Bd3 {[%clk 0:09:45.1]} 6... O-O {[%clk
0:09:55.2]} 7. Ne2 {[%clk 0:09:46.1]} 7... Re8 {[%clk 0:09:38.9]} 8. O-O {[%clk
0:09:45]} 8... c6 {[%clk 0:09:32.2]} 9. f3 {[%clk 0:09:41.1]} 9... Nbd7 {[%clk
0:08:11]} 10. Qe1 {[%clk 0:09:25.7]} 10... Nf8 {[%clk 0:07:59.9]} 11. Qf2 {[%clk
0:09:26.3]} 11... Bd6 {[%clk 0:06:27.1]} 12. Kh1 {[%clk 0:09:24.2]} 12... c5
{[%clk 0:05:41.9]} 13. Bd2 {[%clk 0:09:13.7]} 13... Ng6 {[%clk 0:05:11.4]} 14.
Rad1 {[%clk 0:08:49.7]} 14... b6 {[%clk 0:04:35.7]} 15. Bc1 {[%clk 0:08:10.3]}
15... Bb7 {[%clk 0:04:22.1]} 16. g4 {[%clk 0:07:43.6]} 16... Qe7 {[%clk
0:03:07.7]} 17. g5 {[%clk 0:07:32.6]} 17... Nd7 {[%clk 0:02:59.9]} 18. f4 {[%clk
0:07:32.8]} 18... cxd4 {[%clk 0:02:41.5]} 19. exd4 {[%clk 0:07:31.9]} 19... Bc7
{[%clk 0:00:43.6]} 20. f5 {[%clk 0:07:18.7]} 20... Nge5 {[%clk 0:00:44.3]} 21.
Bb1 {[%clk 0:06:53.6]} 21... Ng4 {[%clk 0:00:37.6]} 22. Qh4 {[%clk 0:06:53.4]}
22... Qd6 {[%clk 0:00:25.9]} 23. Bf4 {[%clk 0:06:50.9]} 23... Nge5 {[%clk
0:00:04.5]} 24. Nb5 {[%clk 0:06:45.1]} 24... Qc6 {[%clk 0:00:04.8]} 25. Nxc7
{[%clk 0:06:45.5]} 25... Qxc7 {[%clk 0:00:05.3]} 26. f6 {[%clk 0:06:32]} 26...
Ng6 {[%clk 0:00:04.9]} 27. Bxg6 {[%clk 0:06:31.4]} 1-0

[Event "GrandPrix_29.05"]
[Site "Chess.com"]
[Date "2020.05.29"]
[Round "5"]
[White "Zadar321"]
[Black "Logman74"]
[Result "0-1"]
[WhiteElo "1968"]
[BlackElo "2166"]
[TimeControl "600+2"]
[EndTime "11:25:03 PDT"]
[Termination "Logman74 won by checkmate"]

1. e4 {[%clk 0:08:37.2]} 1... c5 {[%clk 0:09:57.6]} 2. Nf3 {[%clk 0:08:35.5]}
2... d6 {[%clk 0:09:57.6]} 3. d4 {[%clk 0:08:35.9]} 3... cxd4 {[%clk 0:09:58.6]}
4. Qxd4 {[%clk 0:08:36.9]} 4... Bd7 {[%clk 0:09:56]} 5. c4 {[%clk 0:08:36.7]}
5... Nc6 {[%clk 0:09:56.8]} 6. Qe3 {[%clk 0:08:37.2]} 6... Nf6 {[%clk
0:09:57.8]} 7. Nc3 {[%clk 0:08:38]} 7... g6 {[%clk 0:09:58.4]} 8. h3 {[%clk
0:08:38.9]} 8... Bg7 {[%clk 0:09:59.1]} 9. Be2 {[%clk 0:08:39.9]} 9... O-O
{[%clk 0:10:00.4]} 10. O-O {[%clk 0:08:40.8]} 10... Rc8 {[%clk 0:10:01.2]} 11.
Rd1 {[%clk 0:08:37.2]} 11... Ne8 {[%clk 0:08:59]} 12. Bd2 {[%clk 0:08:34.5]}
12... Nc7 {[%clk 0:08:54.4]} 13. Rac1 {[%clk 0:08:31.8]} 13... Ne6 {[%clk
0:08:54.5]} 14. Be1 {[%clk 0:08:26]} 14... Ne5 {[%clk 0:08:51]} 15. Nxe5 {[%clk
0:08:22.4]} 15... Bxe5 {[%clk 0:08:47.2]} 16. Qxa7 {[%clk 0:08:22.3]} 16... Nc5
{[%clk 0:06:50]} 17. Qa3 {[%clk 0:08:11.5]} 17... Ra8 {[%clk 0:06:41.5]} 18. Qb4
{[%clk 0:08:11.5]} 18... Bc6 {[%clk 0:06:37.4]} 19. Bf3 {[%clk 0:07:57.6]} 19...
f5 {[%clk 0:06:29.9]} 20. Nd5 {[%clk 0:07:09.4]} 20... fxe4 {[%clk 0:06:09.2]}
21. Bg4 {[%clk 0:07:07.1]} 21... Nd3 {[%clk 0:06:06.1]} 22. Be6+ {[%clk
0:07:06.3]} 22... Kh8 {[%clk 0:06:04.1]} 23. Rxd3 {[%clk 0:06:58.7]} 23... exd3
{[%clk 0:06:04]} 24. Bc3 {[%clk 0:06:57.7]} 24... Bxd5 {[%clk 0:05:52.8]} 25.
cxd5 {[%clk 0:06:53.4]} 25... Rxa2 {[%clk 0:05:35.6]} 26. Re1 {[%clk 0:06:30]}
26... Rf6 {[%clk 0:04:43.7]} 27. Rxe5 {[%clk 0:06:15.1]} 27... dxe5 {[%clk
0:04:43.1]} 28. Bxe5 {[%clk 0:06:15.9]} 28... Ra6 {[%clk 0:04:29.9]} 29. Bc3
{[%clk 0:04:44.4]} 29... Qd6 {[%clk 0:02:46.5]} 30. Qxb7 {[%clk 0:04:16.4]}
30... Ra1+ {[%clk 0:02:43.3]} 31. Be1 {[%clk 0:04:10.7]} 31... Rxe1# {[%clk
0:02:41.4]} 0-1

[Event "GrandPrix_29.05"]
[Site "Chess.com"]
[Date "2020.05.29"]
[Round "5"]
[White "friesnielsen2302"]
[Black "kostasam18"]
[Result "0-1"]
[WhiteElo "1685"]
[BlackElo "2058"]
[TimeControl "600+2"]
[EndTime "11:25:21 PDT"]
[Termination "kostasam18 won by resignation"]

1. e3 {[%clk 0:09:51.2]} 1... Nf6 {[%clk 0:09:55.7]} 2. d4 {[%clk 0:09:47]} 2...
g6 {[%clk 0:09:53.5]} 3. Ne2 {[%clk 0:09:41.9]} 3... Bg7 {[%clk 0:09:53.5]} 4.
h3 {[%clk 0:09:32.5]} 4... O-O {[%clk 0:09:52.8]} 5. g4 {[%clk 0:09:28.8]} 5...
d5 {[%clk 0:09:48.4]} 6. Bg2 {[%clk 0:09:25.1]} 6... c5 {[%clk 0:09:48.3]} 7.
Nbc3 {[%clk 0:09:19.4]} 7... e6 {[%clk 0:09:37]} 8. O-O {[%clk 0:09:13.9]} 8...
Nc6 {[%clk 0:09:35]} 9. f4 {[%clk 0:09:13.1]} 9... h5 {[%clk 0:09:21.4]} 10. Bf3
{[%clk 0:08:47.8]} 10... cxd4 {[%clk 0:09:04.9]} 11. exd4 {[%clk 0:08:45.9]}
11... hxg4 {[%clk 0:09:01.1]} 12. hxg4 {[%clk 0:08:44.9]} 12... e5 {[%clk
0:08:14.7]} 13. fxe5 {[%clk 0:08:01.4]} 13... Nxg4 {[%clk 0:08:14.3]} 14. Bf4
{[%clk 0:08:02.3]} 14... Be6 {[%clk 0:08:02.9]} 15. Qd2 {[%clk 0:07:53.3]} 15...
Qh4 {[%clk 0:07:52.5]} 16. Bg3 {[%clk 0:07:39.9]} 16... Qd8 {[%clk 0:07:36.3]}
17. Nf4 {[%clk 0:07:26.6]} 17... Bh6 {[%clk 0:07:25.7]} 18. Qe2 {[%clk
0:06:16.2]} 18... Nxd4 {[%clk 0:07:18.2]} 19. Qd2 {[%clk 0:06:18.1]} 19... Nxf3+
{[%clk 0:07:10.2]} 20. Rxf3 {[%clk 0:06:14.9]} 20... d4 {[%clk 0:07:06]} 21. Ne4
{[%clk 0:06:11.9]} 21... Nxe5 {[%clk 0:06:53.7]} 22. Rff1 {[%clk 0:06:03.1]}
22... Bf5 {[%clk 0:06:43.9]} 23. Rae1 {[%clk 0:05:52.1]} 23... Nc4 {[%clk
0:06:38.8]} 24. Qh2 {[%clk 0:05:48.1]} 24... Kg7 {[%clk 0:06:32.1]} 25. Bh4
{[%clk 0:05:33.3]} 25... f6 {[%clk 0:06:18.5]} 26. Nh5+ {[%clk 0:05:14.8]} 26...
gxh5 {[%clk 0:05:59.5]} 27. Rxf5 {[%clk 0:05:15.4]} 27... Qe8 {[%clk 0:05:23.7]}
28. Kh1 {[%clk 0:05:03]} 28... Ne3 {[%clk 0:05:01.4]} 29. Qg3+ {[%clk
0:04:42.1]} 29... Kh7 {[%clk 0:04:50.3]} 30. Nxf6+ {[%clk 0:04:27.6]} 30... Rxf6
{[%clk 0:04:48.8]} 31. Rxf6 {[%clk 0:04:29.1]} 31... Qe4+ {[%clk 0:04:48.2]} 32.
Rf3 {[%clk 0:04:20]} 32... Rf8 {[%clk 0:04:22.7]} 0-1